[Event "23rd ETCC Women 2021"]
[Site "Catez"]
[Date "2021.11.20"]
[Round "8.31"]
[White "Manakova, Maria"]
[Black "Froewis, Annika"]
[Result "1-0"]
[ECO "C54"]
[WhiteElo "2289"]
[BlackElo "2079"]
[Annotator "NA"]
[PlyCount "125"]
[EventDate "2021.11.08"]
[EventType "team-tourn"]
[EventCountry "SLO"]
[SourceTitle "playchess.com"]
[Source "ChessBase"]
[SourceQuality "1"]
[WhiteTeam "Serbia"]
[BlackTeam "Austria"]
[WhiteTeamCountry "SRB"]
[BlackTeamCountry "AUT"]
[TimeControl "40/5400+30:1800+30"]

1. e4 {[%emt 0:00:04]} e5 {[%emt 0:00:05]} 2. Nf3 {[%emt 0:00:10]} Nc6 {
[%emt 0:00:04]} 3. Bc4 {[%emt 0:00:08]} Bc5 {[%emt 0:00:06]} 4. c3 {[%emt 0:00:
10]} Nf6 {[%emt 0:00:05]} 5. d3 {[%emt 0:00:08]} a6 {[%emt 0:00:27]} 6. Nbd2 {
[%emt 0:01:45]} O-O {[%emt 0:02:50]} 7. O-O {[%emt 0:04:54]} Ba7 {[%emt 0:01:
00]} 8. h3 {[%emt 0:00:58]} d6 {[%emt 0:00:35]} 9. Bb3 {[%emt 0:00:06]} h6 {
[%emt 0:05:17]} 10. Re1 {[%emt 0:00:28]} Re8 {[%emt 0:00:21]} 11. Nf1 {[%emt 0:
00:14]} Be6 {[%emt 0:00:51]} 12. Bc2 {[%emt 0:00:05]} Ne7 {[%emt 0:06:43]} 13.
N3h2 {[%emt 0:06:46]} Ng6 {[%emt 0:04:31]} 14. Qf3 {[%emt 0:00:15]} Nh7 {
[%emt 0:03:55]} 15. Be3 {[%emt 0:11:03]} c6 {[%emt 0:15:07]} 16. d4 {[%emt 0:
03:33]} c5 {[%emt 0:06:30]} 17. d5 {[%emt 0:05:17]} Bd7 {[%emt 0:00:10]} 18. c4
{[%emt 0:00:15]} b5 {[%emt 0:00:48]} 19. b3 {[%emt 0:00:05]} b4 {[%emt 0:10:35]
} 20. Ng3 {[%emt 0:11:50]} Ng5 {[%emt 0:02:54]} 21. Qd1 {[%emt 0:02:08]} Bb6 {
[%emt 0:12:58]} 22. Nf5 {[%emt 0:02:18]} Bc7 {[%emt 0:02:42]} 23. Qg4 {[%emt 0:
06:48]} Nh7 {[%emt 0:03:04]} 24. Qf3 {[%emt 0:07:53]} Nh4 {[%emt 0:03:12]} 25.
Qg3 {[%emt 0:02:11]} Nxf5 {[%emt 0:04:51]} 26. exf5 {[%emt 0:00:07]} Kh8 {
[%emt 0:00:40]} 27. Qf3 {[%emt 0:05:39]} Rg8 {[%emt 0:03:03]} 28. g4 {[%emt 0:
01:44]} a5 {[%emt 0:01:09]} 29. Qg3 {[%emt 0:00:40]} a4 {[%emt 0:04:05]} 30. h4
{[%emt 0:00:28]} Qc8 {[%emt 0:01:33]} 31. Qf3 {[%emt 0:00:59]} Bd8 {[%emt 0:00:
56]} 32. Qg3 {[%emt 0:10:32]} Be7 {[%emt 0:00:32]} 33. Nf3 {[%emt 0:02:00]} Ra6
{[%emt 0:01:48]} 34. Qh3 {[%emt 0:04:03]} Ra8 {[%emt 0:01:55]} 35. Kh2 {
[%emt 0:05:48]} Ra6 {[%emt 0:00:59]} 36. Rg1 {[%emt 0:00:12]} Ra8 {[%emt 0:00:
29]} 37. Qf1 {[%emt 0:02:47]} Ra6 {[%emt 0:01:13]} 38. Qd1 {[%emt 0:01:01]} Ra5
{[%emt 0:00:47]} 39. bxa4 {[%emt 0:00:51]} Qa6 {[%emt 0:00:29]} 40. Qd3 {
[%emt 0:02:56]} Bxa4 {[%emt 0:00:34]} 41. g5 {[%emt 0:02:02]} Bxc2 {[%emt 0:01:
45]} 42. Qxc2 {[%emt 0:04:28]} Ra3 {[%emt 0:01:28]} 43. Nd2 {[%emt 0:04:45]}
Rxe3 {[%emt 0:11:44]} 44. fxe3 {[%emt 0:00:09]} hxg5 {[%emt 0:00:04]} 45. hxg5
{[%emt 0:04:24]} Bxg5 {[%emt 0:00:11]} 46. Qd3 {[%emt 0:04:34]} Ra8 {[%emt 0:
04:27]} 47. Ne4 {[%emt 0:00:27]} Bh6 {[%emt 0:00:09]} 48. Rg2 {[%emt 0:06:14]}
Qb6 {[%emt 0:03:51]} 49. Rb1 {[%emt 0:04:15]} Qd8 {[%emt 0:00:44]} 50. Kg1 {
[%emt 0:00:12]} Qd7 {[%emt 0:00:42]} 51. Rb3 {[%emt 0:00:51]} Ra6 {[%emt 0:01:
56]} 52. Qf1 {[%emt 0:00:29]} Qd8 {[%emt 0:04:10]} 53. Qf2 {[%emt 0:00:06]} f6
{[%emt 0:02:29]} 54. Qf3 {[%emt 0:00:58]} Ng5 {[%emt 0:02:33]} 55. Nxg5 {
[%emt 0:00:05]} Bxg5 {[%emt 0:00:06]} 56. Qh5+ {[%emt 0:00:35]} Kg8 {[%emt 0:
00:23]} 57. Rh2 {[%emt 0:01:06]} Bh6 {[%emt 0:00:23]} 58. Qg6 {[%emt 0:01:50]}
Kf8 {[%emt 0:00:11]} 59. Rxh6 {[%emt 0:00:32]} gxh6 {[%emt 0:00:02]} 60. Rb2 {
[%emt 0:00:34]} Ra7 {[%emt 0:01:29]} 61. Qxh6+ {[%emt 0:00:38]} Rg7+ {[%emt 0:
00:52]} 62. Rg2 {[%emt 0:00:04]} Qe7 {[%emt 0:00:09]} 63. Qh8+ {[%emt 0:00:06]}
1-0

[Event "23rd ETCC Women 2021"]
[Site "Catez"]
[Date "2021.11.20"]
[Round "8.32"]
[White "Mayrhuber, Nikola"]
[Black "Gajcin, Marina"]
[Result "0-1"]
[ECO "E76"]
[WhiteElo "2091"]
[BlackElo "2198"]
[Annotator "NA"]
[PlyCount "94"]
[EventDate "2021.11.08"]
[EventType "team-tourn"]
[EventCountry "SLO"]
[SourceTitle "playchess.com"]
[Source "ChessBase"]
[SourceQuality "1"]
[WhiteTeam "Austria"]
[BlackTeam "Serbia"]
[WhiteTeamCountry "AUT"]
[BlackTeamCountry "SRB"]
[TimeControl "40/5400+30:1800+30"]

1. d4 {[%emt 0:00:04]} Nf6 {[%emt 0:00:05]} 2. c4 {[%emt 0:00:04]} c5 {[%emt 0:
00:05]} 3. d5 {[%emt 0:00:25]} d6 {[%emt 0:00:11]} 4. Nc3 {[%emt 0:01:27]} g6 {
[%emt 0:00:28]} 5. e4 {[%emt 0:00:49]} Bg7 {[%emt 0:00:08]} 6. f4 {[%emt 0:00:
50]} O-O {[%emt 0:00:23]} 7. Nf3 {[%emt 0:00:09]} e6 {[%emt 0:00:05]} 8. dxe6 {
[%emt 0:05:37]} fxe6 {[%emt 0:00:12]} 9. Bd3 {[%emt 0:00:13]} Nh5 {[%emt 0:05:
18]} 10. Ne2 {[%emt 0:16:59]} Bh6 {[%emt 0:30:25]} 11. f5 {[%emt 0:24:55]} Bxc1
{[%emt 0:19:25]} 12. Qxc1 {[%emt 0:00:09]} exf5 {[%emt 0:01:18]} 13. Qh6 {
[%emt 0:03:52]} Nc6 {[%emt 0:05:23]} 14. O-O {[%emt 0:11:45]} f4 {[%emt 0:05:
17]} 15. Ng5 {[%emt 0:09:35]} Qe7 {[%emt 0:01:21]} 16. Ng3 {[%emt 0:02:29]} Qg7
{[%emt 0:03:45]} 17. Qxg7+ {[%emt 0:02:22]} Nxg7 {[%emt 0:00:19]} 18. Ne2 {
[%emt 0:00:54]} h6 {[%emt 0:01:28]} 19. Nf3 {[%emt 0:00:40]} g5 {[%emt 0:04:56]
} 20. Rad1 {[%emt 0:00:10]} Bg4 {[%emt 0:01:14]} 21. Bc2 {[%emt 0:02:50]} Rad8
{[%emt 0:00:55]} 22. Nc3 {[%emt 0:01:27]} Ne6 {[%emt 0:01:54]} 23. Rd5 {
[%emt 0:02:39]} Bxf3 {[%emt 0:01:38]} 24. gxf3 {[%emt 0:03:49]} Ned4 {[%emt 0:
00:05]} 25. Ba4 {[%emt 0:01:08]} Nb4 {[%emt 0:03:34]} 26. Rxd4 {[%emt 0:01:29]}
cxd4 {[%emt 0:00:01]} 27. Nb5 {[%emt 0:01:33]} Nc6 {[%emt 0:03:30]} 28. Rd1 {
[%emt 0:01:08]} Ne5 {[%emt 0:02:14]} 29. Nxd4 {[%emt 0:00:50]} Rf6 {[%emt 0:00:
50]} 30. Bb3 {[%emt 0:02:19]} Kh7 {[%emt 0:00:09]} 31. Kg2 {[%emt 0:00:53]} Rc8
{[%emt 0:00:33]} 32. Nf5 {[%emt 0:01:58]} Nxc4 {[%emt 0:01:02]} 33. Bxc4 {
[%emt 0:00:23]} Rxc4 {[%emt 0:00:02]} 34. Nxd6 {[%emt 0:00:46]} Rc2+ {[%emt 0:
00:07]} 35. Kh3 {[%emt 0:00:16]} Rxb2 {[%emt 0:01:08]} 36. Nc4 {[%emt 0:00:18]}
Rxa2 {[%emt 0:03:46]} 37. Rd7+ {[%emt 0:00:05]} Kg8 {[%emt 0:00:12]} 38. Rxb7 {
[%emt 0:00:29]} h5 {[%emt 0:00:46]} 39. Rb5 {[%emt 0:01:01]} Rg6 {[%emt 0:00:
31]} 40. Ne5 {[%emt 0:00:49]} Rb6 {[%emt 0:02:54]} 41. Rd5 {[%emt 0:03:36]}
Rbb2 {[%emt 0:00:23]} 42. Rd8+ {[%emt 0:00:23]} Kg7 {[%emt 0:00:01]} 43. Rd7+ {
[%emt 0:00:47]} Kf8 {[%emt 0:00:17]} 44. Rd8+ {[%emt 0:00:43]} Ke7 {[%emt 0:01:
39]} 45. Nc6+ {[%emt 0:00:09]} Ke6 {[%emt 0:00:32]} 46. Nd4+ {[%emt 0:01:20]}
Kf7 {[%emt 0:00:09]} 47. Rd7+ {[%emt 0:02:27]} Ke8 {[%emt 0:00:11]} 0-1

[Event "23rd ETCC Women 2021"]
[Site "Catez"]
[Date "2021.11.20"]
[Round "8.33"]
[White "Pilsova, Karolina"]
[Black "Brunello, Marina"]
[Result "1/2-1/2"]
[ECO "B51"]
[WhiteElo "2281"]
[BlackElo "2359"]
[Annotator "NA"]
[PlyCount "91"]
[EventDate "2021.11.08"]
[EventType "team-tourn"]
[EventCountry "SLO"]
[SourceTitle "playchess.com"]
[Source "ChessBase"]
[SourceQuality "1"]
[WhiteTeam "Czech Republic"]
[BlackTeam "Italy"]
[WhiteTeamCountry "CZE"]
[BlackTeamCountry "ITA"]
[TimeControl "40/5400+30:1800+30"]

1. e4 c5 2. Nf3 d6 3. Bb5+ Nd7 4. Ba4 Ngf6 5. O-O g6 6. Re1 Bg7 7. c4 {[%emt 0:
07:54]} O-O {[%emt 0:42:37]} 8. h3 {[%emt 0:00:49]} Nh5 {[%emt 0:00:00]} 9. Nc3
{[%emt 0:10:03]} Ne5 {[%emt 0:00:00]} 10. d3 {[%emt 0:06:28]} Nxf3+ {[%emt 0:
00:00]} 11. Qxf3 {[%emt 0:00:03]} f5 {[%emt 0:00:00]} 12. exf5 {[%emt 0:10:55]}
Rxf5 {[%emt 0:00:00]} 13. Qe2 {[%emt 0:00:39]} Be5 {[%emt 0:00:00]} 14. Bh6 {
[%emt 0:09:58]} e6 {[%emt 0:11:23]} 15. Ne4 {[%emt 0:06:30]} Nf4 {[%emt 0:02:
38]} 16. Bxf4 {[%emt 0:10:48]} Rxf4 {[%emt 0:00:52]} 17. Qd2 {[%emt 0:05:45]}
Rf8 {[%emt 0:06:58]} 18. Re2 {[%emt 0:07:44]} Qc7 {[%emt 0:08:52]} 19. Nc3 {
[%emt 0:06:05]} a6 {[%emt 0:01:54]} 20. Re4 {[%emt 0:04:16]} Qf7 {[%emt 0:06:
39]} 21. Rf1 {[%emt 0:01:15]} Bd4 {[%emt 0:00:48]} 22. Ree1 {[%emt 0:02:16]} e5
{[%emt 0:06:32]} 23. Bd1 {[%emt 0:02:31]} Be6 {[%emt 0:00:31]} 24. Ne4 {
[%emt 0:01:03]} Qd7 {[%emt 0:01:28]} 25. Ng5 {[%emt 0:00:52]} Rf4 {[%emt 0:00:
05]} 26. Bf3 {[%emt 0:01:54]} Bf5 {[%emt 0:02:57]} 27. Bd5+ {[%emt 0:01:06]}
Kg7 {[%emt 0:00:38]} 28. g3 {[%emt 0:01:08]} h6 {[%emt 0:00:41]} 29. gxf4 {
[%emt 0:01:53]} hxg5 {[%emt 0:00:13]} 30. fxe5 {[%emt 0:00:35]} dxe5 {[%emt 0:
00:21]} 31. Qxg5 {[%emt 0:00:48]} Rh8 {[%emt 0:05:38]} 32. Bg2 {[%emt 0:01:50]}
Rh5 {[%emt 0:01:42]} 33. Qg3 {[%emt 0:00:08]} Bxh3 {[%emt 0:00:07]} 34. Re4 {
[%emt 0:01:01]} Qf5 {[%emt 0:01:28]} 35. Bxh3 {[%emt 0:00:44]} Rxh3 {[%emt 0:
00:05]} 36. Qg4 {[%emt 0:00:06]} Rxd3 {[%emt 0:00:25]} 37. Qxf5 {[%emt 0:00:35]
} gxf5 {[%emt 0:00:04]} 38. Re2 {[%emt 0:00:07]} Kf6 {[%emt 0:01:59]} 39. Kg2 {
[%emt 0:00:40]} e4 {[%emt 0:00:30]} 40. Rh1 {[%emt 0:00:58]} Kg6 {[%emt 0:01:
38]} 41. Rh3 {[%emt 0:12:04]} b5 {[%emt 0:06:28]} 42. b3 {[%emt 0:04:16]} Rd1 {
[%emt 0:02:19]} 43. Rh1 {[%emt 0:02:22]} Rd3 {[%emt 0:01:31]} 44. Rh3 {[%emt 0:
00:14]} Rd1 {[%emt 0:00:37]} 45. Rh1 {[%emt 0:01:16]} Rd3 {[%emt 0:07:42]} 46.
Rh3 {[%emt 0:01:40]} 1/2-1/2

[Event "23rd ETCC Women 2021"]
[Site "Catez"]
[Date "2021.11.20"]
[Round "8.34"]
[White "Zimina, Olga"]
[Black "Petrova, Kristyna"]
[Result "1/2-1/2"]
[ECO "E07"]
[WhiteElo "2339"]
[BlackElo "2275"]
[Annotator "NA"]
[PlyCount "138"]
[EventDate "2021.11.08"]
[EventType "team-tourn"]
[EventCountry "SLO"]
[SourceTitle "playchess.com"]
[Source "ChessBase"]
[SourceQuality "1"]
[WhiteTeam "Italy"]
[BlackTeam "Czech Republic"]
[WhiteTeamCountry "ITA"]
[BlackTeamCountry "CZE"]
[TimeControl "40/5400+30:1800+30"]

1. d4 Nf6 2. Nf3 e6 3. g3 d5 4. Bg2 Be7 5. c4 O-O 6. Nc3 Nbd7 {[%emt 0:06:58]}
7. cxd5 {[%emt 0:40:30]} exd5 {[%emt 0:01:46]} 8. O-O {[%emt 0:00:00]} c6 {
[%emt 0:01:35]} 9. Bf4 {[%emt 0:00:00]} Re8 {[%emt 0:00:43]} 10. Rc1 {[%emt 0:
00:00]} Nf8 {[%emt 0:00:58]} 11. Ne5 {[%emt 0:00:00]} Ng6 {[%emt 0:01:38]} 12.
Nxg6 {[%emt 0:00:00]} hxg6 {[%emt 0:00:39]} 13. Na4 {[%emt 0:00:00]} Bd6 {
[%emt 0:04:32]} 14. Bxd6 {[%emt 0:00:00]} Qxd6 {[%emt 0:00:02]} 15. Nc5 {
[%emt 0:00:00]} Qe7 {[%emt 0:16:05]} 16. Re1 {[%emt 0:00:00]} Ne4 {[%emt 0:01:
27]} 17. Nxe4 {[%emt 0:00:00]} dxe4 {[%emt 0:00:02]} 18. e3 {[%emt 0:00:00]}
Bf5 {[%emt 0:11:24]} 19. Rc5 {[%emt 0:00:00]} Qd7 {[%emt 0:00:34]} 20. Qc2 {
[%emt 0:00:00]} a5 {[%emt 0:12:11]} 21. a4 {[%emt 0:01:16]} Qe6 {[%emt 0:04:24]
} 22. Rc1 {[%emt 0:02:47]} Qd7 {[%emt 0:02:02]} 23. Qc3 {[%emt 0:12:27]} Qd8 {
[%emt 0:00:13]} 24. Qb3 {[%emt 0:07:09]} Qd7 {[%emt 0:01:33]} 25. Bf1 {[%emt 0:
03:56]} Reb8 {[%emt 0:06:14]} 26. Qc3 {[%emt 0:13:33]} Bh3 {[%emt 0:05:38]} 27.
Bxh3 {[%emt 0:03:40]} Qxh3 {[%emt 0:00:02]} 28. Rxa5 {[%emt 0:00:08]} Kh7 {
[%emt 0:04:41]} 29. b3 {[%emt 0:03:22]} f6 {[%emt 0:02:39]} 30. Rxa8 {[%emt 0:
02:05]} Rxa8 {[%emt 0:00:02]} 31. Qb4 {[%emt 0:00:41]} Qd7 {[%emt 0:00:55]} 32.
h4 {[%emt 0:03:22]} Kh6 {[%emt 0:02:07]} 33. Qc5 {[%emt 0:01:42]} Rh8 {[%emt 0:
01:07]} 34. Kg2 {[%emt 0:01:21]} Qg4 {[%emt 0:01:52]} 35. Qe7 {[%emt 0:02:54]}
Qf3+ {[%emt 0:01:15]} 36. Kg1 {[%emt 0:00:05]} g5 {[%emt 0:00:23]} 37. h5 {
[%emt 0:01:39]} Kxh5 {[%emt 0:07:54]} 38. Qxg7 {[%emt 0:00:08]} Rh6 {[%emt 0:
01:47]} 39. b4 {[%emt 0:01:09]} Qf5 {[%emt 0:01:32]} 40. Kg2 {[%emt 0:04:49]}
Qf3+ {[%emt 0:00:15]} 41. Kg1 {[%emt 0:30:04]} Qf5 {[%emt 0:32:26]} 42. b5 {
[%emt 0:00:00]} cxb5 {[%emt 0:00:00]} 43. axb5 {[%emt 0:00:00]} b6 {[%emt 0:00:
00]} 44. d5 {[%emt 0:00:00]} Rh7 {[%emt 0:00:00]} 45. Qg8 {[%emt 0:00:00]} Kg4
{[%emt 0:00:00]} 46. Qe6 {[%emt 0:00:00]} Qxe6 {[%emt 0:00:00]} 47. dxe6 {
[%emt 0:00:00]} Kf5 {[%emt 0:00:00]} 48. Rc6 {[%emt 0:00:00]} g4 {[%emt 0:00:
00]} 49. Rxb6 {[%emt 0:00:00]} Re7 {[%emt 0:00:00]} 50. Kf1 {[%emt 0:00:00]}
Ke5 {[%emt 0:00:00]} 51. Ke2 {[%emt 0:00:35]} Kd5 {[%emt 0:00:00]} 52. Rc6 {
[%emt 0:00:34]} f5 {[%emt 0:00:00]} 53. Kd2 {[%emt 0:00:56]} Rb7 {[%emt 0:01:
06]} 54. e7 {[%emt 0:01:15]} Rxe7 {[%emt 0:00:01]} 55. Kc3 {[%emt 0:00:04]} Ra7
{[%emt 0:01:43]} 56. Ra6 {[%emt 0:01:20]} Rc7+ {[%emt 0:00:29]} 57. Rc6 {
[%emt 0:02:46]} Rxc6+ {[%emt 0:01:56]} 58. bxc6 {[%emt 0:00:05]} Kxc6 {[%emt 0:
00:01]} 59. Kc4 {[%emt 0:00:05]} Kd6 {[%emt 0:00:04]} 60. Kb4 {[%emt 0:00:44]}
Kc6 {[%emt 0:00:28]} 61. Kc4 {[%emt 0:00:12]} Kd6 {[%emt 0:00:06]} 62. Kd4 {
[%emt 0:00:06]} Ke6 {[%emt 0:00:07]} 63. Kc5 {[%emt 0:00:12]} Ke5 {[%emt 0:00:
04]} 64. Kb4 {[%emt 0:00:27]} Kd6 {[%emt 0:00:56]} 65. Kb5 {[%emt 0:00:13]} Kd5
{[%emt 0:00:07]} 66. Kb4 {[%emt 0:00:12]} Kd6 {[%emt 0:00:05]} 67. Kc4 {
[%emt 0:00:59]} Kc6 {[%emt 0:00:07]} 68. Kd4 {[%emt 0:00:04]} Kd6 {[%emt 0:00:
04]} 69. Kc4 {[%emt 0:00:31]} Ke5 {[%emt 0:00:34]} 1/2-1/2

[Event "23rd ETCC Women 2021"]
[Site "Catez"]
[Date "2021.11.20"]
[Round "8.35"]
[White "Miturova, Magdalena"]
[Black "Gueci, Tea"]
[Result "1/2-1/2"]
[ECO "B31"]
[WhiteElo "2248"]
[BlackElo "2242"]
[Annotator "NA"]
[PlyCount "118"]
[EventDate "2021.11.08"]
[EventType "team-tourn"]
[EventCountry "SLO"]
[SourceTitle "playchess.com"]
[Source "ChessBase"]
[SourceQuality "1"]
[WhiteTeam "Czech Republic"]
[BlackTeam "Italy"]
[WhiteTeamCountry "CZE"]
[BlackTeamCountry "ITA"]
[TimeControl "40/5400+30:1800+30"]

1. e4 c5 2. Nf3 Nc6 3. Bb5 g6 4. Bxc6 dxc6 5. d3 Bg7 6. h3 Nf6 7. Nc3 Nd7 8.
Be3 e5 9. Qd2 h6 10. O-O b6 11. Nh2 Nf8 12. f4 exf4 13. Bxf4 Ne6 14. Bg3 Qg5
15. Qe1 Nd4 16. Qf2 O-O 17. Bd6 Bxh3 18. Bf4 Qxg2+ 19. Qxg2 Bxg2 20. Kxg2 Nxc2
21. Rad1 Rad8 22. Rf2 Nd4 23. Nf3 g5 {[%emt 0:08:26]} 24. Bc1 {[%emt 0:10:21]}
f5 {[%emt 0:00:30]} 25. Nxd4 {[%emt 0:00:30]} cxd4 {[%emt 0:00:30]} 26. Ne2 {
[%emt 0:00:30]} fxe4 {[%emt 0:00:30]} 27. Rxf8+ {[%emt 0:00:30]} Rxf8 {[%emt 0:
00:30]} 28. dxe4 {[%emt 0:00:30]} c5 {[%emt 0:00:30]} 29. Ng3 {[%emt 0:00:30]}
Re8 {[%emt 0:00:30]} 30. Kf3 {[%emt 0:00:30]} Re6 {[%emt 0:00:30]} 31. Nf5 {
[%emt 0:00:30]} Bf8 {[%emt 0:00:30]} 32. Re1 {[%emt 0:00:30]} Re5 {[%emt 0:00:
30]} 33. Bd2 {[%emt 0:00:30]} Kh7 {[%emt 0:00:30]} 34. Rg1 {[%emt 0:00:30]} Re6
{[%emt 0:00:30]} 35. Be1 {[%emt 0:00:30]} b5 {[%emt 0:00:30]} 36. Bg3 {[%emt 0:
00:30]} Kg6 {[%emt 0:00:30]} 37. Bb8 {[%emt 0:00:30]} b4 {[%emt 0:00:30]} 38.
b3 {[%emt 0:00:30]} a5 {[%emt 0:00:30]} 39. Bc7 {[%emt 0:00:30]} Ra6 {[%emt 0:
00:30]} 40. Ke2 {[%emt 0:00:30]} a4 {[%emt 0:00:30]} 41. Kd3 {[%emt 0:30:30]}
axb3 {[%emt 0:30:30]} 42. axb3 {[%emt 0:00:30]} c4+ {[%emt 0:00:30]} 43. bxc4 {
[%emt 0:00:30]} Bc5 {[%emt 0:00:30]} 44. Rf1 {[%emt 0:00:30]} Ra3+ {[%emt 0:00:
30]} 45. Kc2 {[%emt 0:00:30]} Rc3+ {[%emt 0:00:30]} 46. Kb2 {[%emt 0:00:30]} d3
{[%emt 0:00:30]} 47. e5 {[%emt 0:00:30]} d2 {[%emt 0:00:30]} 48. Bd6 {[%emt 0:
00:30]} Bf2 {[%emt 0:00:30]} 49. Ne7+ {[%emt 0:00:30]} Kh5 {[%emt 0:00:30]} 50.
Nd5 {[%emt 0:00:30]} Rxc4 {[%emt 0:00:30]} 51. Rd1 {[%emt 0:00:30]} Rd4 {
[%emt 0:00:30]} 52. Nxb4 {[%emt 0:00:30]} g4 {[%emt 0:00:30]} 53. Bc5 {[%emt 0:
00:30]} g3 {[%emt 0:00:30]} 54. Bxd4 {[%emt 0:00:30]} Bxd4+ {[%emt 0:00:30]}
55. Kc2 {[%emt 0:00:30]} g2 {[%emt 0:00:30]} 56. e6 {[%emt 0:00:30]} Kg6 {
[%emt 0:00:30]} 57. Nd5 {[%emt 0:00:30]} g1=Q {[%emt 0:00:30]} 58. Rxg1+ {
[%emt 0:00:30]} Bxg1 {[%emt 0:00:30]} 59. Kxd2 {[%emt 0:00:30]} Bc5 {[%emt 0:
00:30]} 1/2-1/2

[Event "23rd ETCC Women 2021"]
[Site "Catez"]
[Date "2021.11.20"]
[Round "8.36"]
[White "Movileanu, Daniela"]
[Black "Nemcova, Karin"]
[Result "1/2-1/2"]
[ECO "B90"]
[WhiteElo "2214"]
[BlackElo "2169"]
[Annotator "NA"]
[PlyCount "155"]
[EventDate "2021.11.08"]
[EventType "team-tourn"]
[EventCountry "SLO"]
[SourceTitle "playchess.com"]
[Source "ChessBase"]
[SourceQuality "1"]
[WhiteTeam "Italy"]
[BlackTeam "Czech Republic"]
[WhiteTeamCountry "ITA"]
[BlackTeamCountry "CZE"]
[TimeControl "40/5400+30:1800+30"]

1. e4 c5 2. Nf3 d6 3. d4 cxd4 4. Nxd4 Nf6 5. Nc3 a6 6. a4 e5 7. Nf3 Be7 8. Bg5
Be6 9. Bxf6 Bxf6 10. Nd5 Nc6 11. Bc4 O-O 12. O-O Rc8 13. b3 Bxd5 14. Bxd5 Nb4
15. c4 b6 16. Qd2 a5 17. Ne1 Bg5 18. Qd1 Nxd5 19. Qxd5 Rc5 {[%emt 0:09:08]} 20.
Qd3 {[%emt 0:11:45]} f5 {[%emt 0:00:30]} 21. Rd1 {[%emt 0:00:30]} fxe4 {
[%emt 0:00:30]} 22. Qxe4 {[%emt 0:00:30]} Rf4 {[%emt 0:00:30]} 23. Qe2 {
[%emt 0:00:30]} Rc7 {[%emt 0:00:30]} 24. g3 {[%emt 0:00:30]} Rf8 {[%emt 0:00:
30]} 25. Qd3 {[%emt 0:00:30]} Rcf7 {[%emt 0:00:30]} 26. Qd5 {[%emt 0:00:30]}
Kh8 {[%emt 0:00:30]} 27. Rd3 {[%emt 0:00:30]} Qc7 {[%emt 0:00:30]} 28. Rf3 {
[%emt 0:00:30]} Bf6 {[%emt 0:00:30]} 29. Nc2 {[%emt 0:00:30]} Re7 {[%emt 0:00:
30]} 30. Qe4 {[%emt 0:00:30]} d5 {[%emt 0:00:30]} 31. cxd5 {[%emt 0:00:30]} Rd8
{[%emt 0:00:30]} 32. Ne3 {[%emt 0:00:30]} Red7 {[%emt 0:00:30]} 33. Rd1 {
[%emt 0:00:30]} Qc5 {[%emt 0:00:30]} 34. h4 {[%emt 0:00:30]} b5 {[%emt 0:00:30]
} 35. Kg2 {[%emt 0:00:30]} Kg8 {[%emt 0:00:30]} 36. Ng4 {[%emt 0:00:30]} Rxd5 {
[%emt 0:00:30]} 37. Rxd5 {[%emt 0:00:30]} Qxd5 {[%emt 0:00:30]} 38. Qxd5+ {
[%emt 0:00:30]} Rxd5 {[%emt 0:00:30]} 39. Rxf6 {[%emt 0:00:30]} bxa4 {[%emt 0:
00:30]} 40. bxa4 {[%emt 0:00:30]} Rd4 {[%emt 0:00:30]} 41. Ra6 {[%emt 0:30:30]}
Rxg4 {[%emt 0:30:30]} 42. Rxa5 {[%emt 0:00:30]} Kf7 {[%emt 0:00:30]} 43. Kf3 {
[%emt 0:00:30]} Rb4 {[%emt 0:00:30]} 44. Ra6 {[%emt 0:00:30]} h5 {[%emt 0:00:
30]} 45. Ke3 {[%emt 0:00:30]} Ke7 {[%emt 0:00:30]} 46. a5 {[%emt 0:00:30]} Ra4
{[%emt 0:00:30]} 47. Ra8 {[%emt 0:00:30]} Kf7 {[%emt 0:00:30]} 48. a6 {[%emt 0:
00:30]} g6 {[%emt 0:00:30]} 49. a7 {[%emt 0:00:30]} Kg7 {[%emt 0:00:30]} 50.
Kd3 {[%emt 0:00:30]} e4+ {[%emt 0:00:30]} 51. Kc3 {[%emt 0:00:30]} Kh7 {
[%emt 0:00:30]} 52. Kb3 {[%emt 0:00:30]} Ra1 {[%emt 0:00:30]} 53. Kb4 {[%emt 0:
00:30]} Kg7 {[%emt 0:00:30]} 54. Kb5 {[%emt 0:00:30]} Kh7 {[%emt 0:00:30]} 55.
Kb6 {[%emt 0:00:30]} Rb1+ {[%emt 0:00:30]} 56. Kc7 {[%emt 0:00:30]} Ra1 {
[%emt 0:00:30]} 57. Kc6 {[%emt 0:00:30]} Kg7 {[%emt 0:00:30]} 58. Kd6 {[%emt 0:
00:30]} Ra6+ {[%emt 0:00:30]} 59. Ke5 {[%emt 0:00:30]} Ra4 {[%emt 0:00:30]} 60.
Ke6 {[%emt 0:00:30]} Ra6+ {[%emt 0:00:30]} 61. Ke7 {[%emt 0:00:30]} Ra2 {
[%emt 0:00:30]} 62. Ke6 {[%emt 0:00:30]} Ra6+ {[%emt 0:00:30]} 63. Kd5 {
[%emt 0:00:30]} Ra4 {[%emt 0:00:30]} 64. Ke5 {[%emt 0:00:30]} Kh7 {[%emt 0:00:
30]} 65. Rd8 {[%emt 0:00:30]} Rxa7 {[%emt 0:00:30]} 66. Kxe4 {[%emt 0:00:30]}
Ra5 {[%emt 0:00:30]} 67. Rd5 {[%emt 0:00:30]} Ra2 {[%emt 0:00:30]} 68. f3 {
[%emt 0:00:30]} Ra3 {[%emt 0:00:30]} 69. Kf4 {[%emt 0:00:30]} Kg7 {[%emt 0:00:
30]} 70. Rd7+ {[%emt 0:00:30]} Kf6 {[%emt 0:00:30]} 71. Rd4 {[%emt 0:00:30]}
Rb3 {[%emt 0:00:30]} 72. g4 {[%emt 0:00:30]} hxg4 {[%emt 0:00:30]} 73. Kxg4 {
[%emt 0:00:30]} Rb5 {[%emt 0:00:30]} 74. Rd6+ {[%emt 0:00:30]} Kg7 {[%emt 0:00:
30]} 75. f4 {[%emt 0:00:30]} Kf7 {[%emt 0:00:30]} 76. Rd7+ {[%emt 0:00:30]} Kf6
{[%emt 0:00:30]} 77. Rd6+ {[%emt 0:00:30]} Kf7 {[%emt 0:00:30]} 78. Rd7+ {
[%emt 0:00:30]} 1/2-1/2